[Event "Late-Titled-Tuesday-Blitz-February-27-2024"]
[Site "Chess.com"]
[Date "2024.02.27"]
[Round "11"]
[White "Journey_to_GrandMaster_YT"]
[Black "NateSolon"]
[Result "0-1"]
[WhiteElo "2516"]
[BlackElo "2685"]
[TimeControl "180+1"]
[EndTime "16:05:00 PST"]
[Termination "NateSolon won by checkmate"]

1. d4 {[%clk 0:03:00.3]} 1... d5 {[%clk 0:02:58.3]} 2. c4 {[%clk 0:02:57.4]}
2... c6 {[%clk 0:02:58.3]} 3. Nf3 {[%clk 0:02:56.8]} 3... Nf6 {[%clk 0:02:58.4]}
4. e3 {[%clk 0:02:57.1]} 4... e6 {[%clk 0:02:57.9]} 5. Nc3 {[%clk 0:02:56.9]}
5... a6 {[%clk 0:02:57.6]} 6. Bd3 {[%clk 0:02:53.8]} 6... dxc4 {[%clk
0:02:57.5]} 7. Bxc4 {[%clk 0:02:53.6]} 7... b5 {[%clk 0:02:57.5]} 8. Be2 {[%clk
0:02:53.4]} 8... c5 {[%clk 0:02:57.7]} 9. a4 {[%clk 0:02:50.1]} 9... b4 {[%clk
0:02:56.1]} 10. Nb1 {[%clk 0:02:49.7]} 10... Bb7 {[%clk 0:02:55.3]} 11. O-O
{[%clk 0:02:49.7]} 11... Nbd7 {[%clk 0:02:54.2]} 12. Nbd2 {[%clk 0:02:49.1]}
12... Be7 {[%clk 0:02:48.3]} 13. Nc4 {[%clk 0:02:48.1]} 13... O-O {[%clk
0:02:47.7]} 14. b3 {[%clk 0:02:40]} 14... Ne4 {[%clk 0:02:45.8]} 15. Bb2 {[%clk
0:02:39]} 15... Bf6 {[%clk 0:02:42.1]} 16. Rc1 {[%clk 0:02:33]} 16... Qe7 {[%clk
0:02:28]} 17. Qc2 {[%clk 0:02:28.7]} 17... Rac8 {[%clk 0:02:25.9]} 18. Bd3
{[%clk 0:02:23.2]} 18... Nd6 {[%clk 0:02:16.1]} 19. Bxh7+ {[%clk 0:02:21.1]}
19... Kh8 {[%clk 0:02:16.1]} 20. Bd3 {[%clk 0:02:19.3]} 20... cxd4 {[%clk
0:02:15.2]} 21. Nxd4 {[%clk 0:02:16.7]} 21... Ne5 {[%clk 0:02:03.3]} 22. Qe2
{[%clk 0:02:05.6]} 22... Nxd3 {[%clk 0:02:01.3]} 23. Qxd3 {[%clk 0:02:05.6]}
23... Ne4 {[%clk 0:01:54.1]} 24. Nb6 {[%clk 0:01:53.3]} 24... Rxc1 {[%clk
0:01:42.1]} 25. Rxc1 {[%clk 0:01:54.2]} 25... Rd8 {[%clk 0:01:41.9]} 26. Qc2
{[%clk 0:01:38.4]} 26... Be5 {[%clk 0:01:31.2]} 27. Nf3 {[%clk 0:01:30.8]} 27...
Bxb2 {[%clk 0:01:26.7]} 28. Qxb2 {[%clk 0:01:30.7]} 28... Nc3 {[%clk 0:01:26.9]}
29. Nc4 {[%clk 0:01:09.7]} 29... Bxf3 {[%clk 0:01:24.6]} 30. gxf3 {[%clk
0:01:09.7]} 30... Qg5+ {[%clk 0:01:24]} 31. Kh1 {[%clk 0:01:10.2]} 31... Qh5
{[%clk 0:01:13.1]} 32. Kg2 {[%clk 0:01:04.9]} 32... Qg6+ {[%clk 0:01:03.8]} 33.
Kh1 {[%clk 0:01:03.9]} 33... Qh5 {[%clk 0:01:01.4]} 34. Nd2 {[%clk 0:00:43.8]}
34... Rxd2 {[%clk 0:00:53.8]} 35. Qxd2 {[%clk 0:00:41.7]} 35... Qxf3+ {[%clk
0:00:54]} 36. Kg1 {[%clk 0:00:42.2]} 36... Ne2+ {[%clk 0:00:54.9]} 37. Kf1
{[%clk 0:00:31.3]} 37... Nxc1 {[%clk 0:00:55.8]} 38. Qd8+ {[%clk 0:00:30.2]}
38... Kh7 {[%clk 0:00:55.5]} 39. Qh4+ {[%clk 0:00:30.6]} 39... Kg6 {[%clk
0:00:55.4]} 40. Qxb4 {[%clk 0:00:28.3]} 40... Qh1# {[%clk 0:00:54.3]} 0-1

[Event "Late-Titled-Tuesday-Blitz-February-27-2024"]
[Site "Chess.com"]
[Date "2024.02.27"]
[Round "11"]
[White "ArtemDyachuk"]
[Black "Msb2"]
[Result "0-1"]
[WhiteElo "2737"]
[BlackElo "3035"]
[TimeControl "180+1"]
[EndTime "16:05:01 PST"]
[Termination "Msb2 won by resignation"]

1. d4 {[%clk 0:03:00]} 1... d5 {[%clk 0:03:00.3]} 2. c4 {[%clk 0:03:00.1]} 2...
e6 {[%clk 0:03:01]} 3. Nf3 {[%clk 0:03:00.7]} 3... Nf6 {[%clk 0:03:01.1]} 4. g3
{[%clk 0:03:01.3]} 4... Nc6 {[%clk 0:03:01]} 5. Bg2 {[%clk 0:03:00.9]} 5... Bd6
{[%clk 0:03:01.7]} 6. O-O {[%clk 0:03:01.1]} 6... O-O {[%clk 0:03:02.3]} 7. b3
{[%clk 0:03:01.8]} 7... dxc4 {[%clk 0:03:02.7]} 8. bxc4 {[%clk 0:03:02.4]} 8...
e5 {[%clk 0:03:03.6]} 9. d5 {[%clk 0:02:59.1]} 9... Na5 {[%clk 0:03:03.8]} 10.
Nfd2 {[%clk 0:02:57.8]} 10... c6 {[%clk 0:03:03.7]} 11. Bb2 {[%clk 0:02:53.5]}
11... cxd5 {[%clk 0:03:03.8]} 12. cxd5 {[%clk 0:02:54.4]} 12... Bf5 {[%clk
0:03:01.7]} 13. Nc3 {[%clk 0:02:53.6]} 13... Rc8 {[%clk 0:02:58.8]} 14. Rc1
{[%clk 0:02:52.1]} 14... Qb6 {[%clk 0:02:55]} 15. Ba1 {[%clk 0:02:50.5]} 15...
Ba3 {[%clk 0:02:51.7]} 16. Na4 {[%clk 0:02:27.6]} 16... Rxc1 {[%clk 0:02:42.8]}
17. Nxb6 {[%clk 0:02:18.8]} 17... Rxd1 {[%clk 0:02:43.2]} 18. Rxd1 {[%clk
0:02:19.3]} 18... axb6 {[%clk 0:02:43.8]} 19. Bxe5 {[%clk 0:02:19.7]} 19... Bc2
{[%clk 0:02:43.8]} 20. Re1 {[%clk 0:02:09.9]} 20... Nd7 {[%clk 0:02:40.5]} 21.
Bd4 {[%clk 0:02:04.4]} 21... Rc8 {[%clk 0:02:36]} 22. Bh3 {[%clk 0:02:02.4]}
22... Ba4 {[%clk 0:02:23.1]} 23. Nf3 {[%clk 0:01:56.5]} 23... Rc1 {[%clk
0:02:14.5]} 24. Rxc1 {[%clk 0:01:39.1]} 24... Bxc1 {[%clk 0:02:15.4]} 25. Bxd7
{[%clk 0:01:35.4]} 25... Bxd7 {[%clk 0:02:16.3]} 26. Ne5 {[%clk 0:01:35.9]}
26... Bb5 {[%clk 0:01:59.5]} 27. d6 {[%clk 0:01:22.4]} 27... Bg5 {[%clk
0:01:40.6]} 28. Bxb6 {[%clk 0:00:41.8]} 28... Nc6 {[%clk 0:01:40.6]} 29. Nf3
{[%clk 0:00:24.5]} 29... Bd8 {[%clk 0:01:29.3]} 30. Bxd8 {[%clk 0:00:17.2]}
30... Nxd8 {[%clk 0:01:29.8]} 31. Nd4 {[%clk 0:00:17.8]} 31... Bc4 {[%clk
0:01:29.7]} 32. a3 {[%clk 0:00:16.3]} 32... Kf8 {[%clk 0:01:30.3]} 33. e4 {[%clk
0:00:16]} 33... f6 {[%clk 0:01:22.3]} 34. f4 {[%clk 0:00:15.4]} 34... Nf7 {[%clk
0:01:19.5]} 35. d7 {[%clk 0:00:10.9]} 35... g6 {[%clk 0:01:19.8]} 36. e5 {[%clk
0:00:05.2]} 36... fxe5 {[%clk 0:01:20.7]} 37. fxe5 {[%clk 0:00:06.1]} 37... Ke7
{[%clk 0:01:21.3]} 38. e6 {[%clk 0:00:02.3]} 38... Bxe6 {[%clk 0:01:21.3]} 39.
a4 {[%clk 0:00:01.4]} 39... Bxd7 {[%clk 0:01:21.6]} 40. a5 {[%clk 0:00:02.3]}
40... Ne5 {[%clk 0:01:21.3]} 41. Nb3 {[%clk 0:00:02.3]} 41... Nc4 {[%clk
0:01:20.3]} 42. a6 {[%clk 0:00:01.3]} 42... bxa6 {[%clk 0:01:20.4]} 0-1

[Event "Late-Titled-Tuesday-Blitz-February-27-2024"]
[Site "Chess.com"]
[Date "2024.02.27"]
[Round "11"]
[White "N_Mullodzhanov"]
[Black "Ar4uha"]
[Result "1-0"]
[WhiteElo "2484"]
[BlackElo "2591"]
[TimeControl "180+1"]
[EndTime "16:05:06 PST"]
[Termination "N_Mullodzhanov won on time"]

1. e4 {[%clk 0:03:00.9]} 1... d5 {[%clk 0:02:59.3]} 2. Nc3 {[%clk 0:03:00.6]}
2... Nf6 {[%clk 0:02:59.4]} 3. e5 {[%clk 0:02:58.4]} 3... d4 {[%clk 0:02:59.8]}
4. exf6 {[%clk 0:02:56.2]} 4... dxc3 {[%clk 0:02:55.9]} 5. fxg7 {[%clk
0:02:56.4]} 5... cxd2+ {[%clk 0:02:56.3]} 6. Qxd2 {[%clk 0:02:53.8]} 6... Qxd2+
{[%clk 0:02:47.3]} 7. Bxd2 {[%clk 0:02:54.7]} 7... Bxg7 {[%clk 0:02:48]} 8.
O-O-O {[%clk 0:02:54.5]} 8... Nc6 {[%clk 0:02:47.2]} 9. Bb5 {[%clk 0:02:53.8]}
9... Bd7 {[%clk 0:02:47.2]} 10. Nf3 {[%clk 0:02:52.1]} 10... O-O-O {[%clk
0:02:47.5]} 11. Rhe1 {[%clk 0:02:51.7]} 11... e6 {[%clk 0:02:48.1]} 12. Be3
{[%clk 0:02:50]} 12... a6 {[%clk 0:02:48]} 13. Ba4 {[%clk 0:02:48.4]} 13... Nb4
{[%clk 0:02:16.5]} 14. Bxd7+ {[%clk 0:02:37.3]} 14... Rxd7 {[%clk 0:02:17.4]}
15. c3 {[%clk 0:02:35.1]} 15... Nd3+ {[%clk 0:02:16.1]} 16. Kc2 {[%clk 0:02:30]}
16... Nxe1+ {[%clk 0:02:15.4]} 17. Rxe1 {[%clk 0:02:30.9]} 17... e5 {[%clk
0:02:04.1]} 18. h4 {[%clk 0:02:24.5]} 18... f5 {[%clk 0:02:03.6]} 19. Ng5 {[%clk
0:02:24]} 19... h6 {[%clk 0:01:53.5]} 20. Ne6 {[%clk 0:02:23.1]} 20... Bf6
{[%clk 0:01:53.8]} 21. f4 {[%clk 0:02:23]} 21... Bxh4 {[%clk 0:01:48.7]} 22. Rh1
{[%clk 0:02:20]} 22... Bg3 {[%clk 0:01:43.2]} 23. fxe5 {[%clk 0:02:19.5]} 23...
Bxe5 {[%clk 0:01:44.1]} 24. Rh5 {[%clk 0:02:11.2]} 24... Re7 {[%clk 0:01:36.6]}
25. Nd4 {[%clk 0:02:04.9]} 25... Bxd4 {[%clk 0:01:36.8]} 26. Bxd4 {[%clk
0:02:05.2]} 26... Rg8 {[%clk 0:01:33.5]} 27. Rxh6 {[%clk 0:02:03.3]} 27... Rxg2+
{[%clk 0:01:33.6]} 28. Kb3 {[%clk 0:02:02.5]} 28... b6 {[%clk 0:01:26]} 29. Rf6
{[%clk 0:02:00.9]} 29... Ree2 {[%clk 0:01:26.2]} 30. c4 {[%clk 0:02:00.8]} 30...
Rg3+ {[%clk 0:01:26.5]} 31. Bc3 {[%clk 0:01:59.8]} 31... Rf3 {[%clk 0:01:26.3]}
32. a4 {[%clk 0:01:59.9]} 32... a5 {[%clk 0:01:24.6]} 33. c5 {[%clk 0:01:59.1]}
33... bxc5 {[%clk 0:01:24.2]} 34. Ra6 {[%clk 0:01:59.7]} 34... Kb7 {[%clk
0:00:44.4]} 35. Rxa5 {[%clk 0:02:00.6]} 35... Kb6 {[%clk 0:00:44.9]} 36. Rb5+
{[%clk 0:01:56.9]} 36... Kc6 {[%clk 0:00:45.4]} 37. Rb8 {[%clk 0:01:57.5]} 37...
f4 {[%clk 0:00:46]} 38. Rf8 {[%clk 0:01:57.1]} 38... Re1 {[%clk 0:00:43.2]} 39.
a5 {[%clk 0:01:55.6]} 39... Ra1 {[%clk 0:00:42.4]} 40. Kc4 {[%clk 0:01:53]}
40... Ra4+ {[%clk 0:00:37.4]} 41. b4 {[%clk 0:01:51.2]} 41... Rxc3+ {[%clk
0:00:05.1]} 42. Kxc3 {[%clk 0:01:51.4]} 42... cxb4+ {[%clk 0:00:03.7]} 43. Kb3
{[%clk 0:01:52]} 43... Rxa5 {[%clk 0:00:03.5]} 44. Kxb4 {[%clk 0:01:52.5]} 44...
Rb5+ {[%clk 0:00:02.1]} 45. Kc4 {[%clk 0:01:52.1]} 45... Ra5 {[%clk 0:00:02.2]}
46. Kb4 {[%clk 0:01:52.2]} 46... Rb5+ {[%clk 0:00:02.4]} 47. Kc4 {[%clk
0:01:52.7]} 47... Rc5+ {[%clk 0:00:03]} 48. Kd4 {[%clk 0:01:53.1]} 48... Rd5+
{[%clk 0:00:03.4]} 49. Ke4 {[%clk 0:01:53.4]} 49... Rd1 {[%clk 0:00:03.2]} 50.
Rxf4 {[%clk 0:01:51.9]} 50... Kc5 {[%clk 0:00:02.9]} 51. Rf5+ {[%clk 0:01:42.7]}
51... Kc4 {[%clk 0:00:02.5]} 52. Ke3 {[%clk 0:01:41.4]} 52... c5 {[%clk
0:00:01.5]} 53. Rf8 {[%clk 0:01:41.4]} 1-0

[Event "Late-Titled-Tuesday-Blitz-February-27-2024"]
[Site "Chess.com"]
[Date "2024.02.27"]
[Round "11"]
[White "Joachim100x"]
[Black "djano"]
[Result "1-0"]
[WhiteElo "2492"]
[BlackElo "2552"]
[TimeControl "180+1"]
[EndTime "16:05:07 PST"]
[Termination "Joachim100x won by resignation"]

1. Nc3 {[%clk 0:02:52.6]} 1... c5 {[%clk 0:02:55.2]} 2. e4 {[%clk 0:02:51.2]}
2... Nc6 {[%clk 0:02:54.5]} 3. Nge2 {[%clk 0:02:50.8]} 3... g6 {[%clk
0:02:52.1]} 4. d4 {[%clk 0:02:50.7]} 4... cxd4 {[%clk 0:02:51.8]} 5. Nxd4 {[%clk
0:02:51.6]} 5... Bg7 {[%clk 0:02:52.4]} 6. Be3 {[%clk 0:02:51.7]} 6... Nf6
{[%clk 0:02:52.4]} 7. Bc4 {[%clk 0:02:52.2]} 7... O-O {[%clk 0:02:52.5]} 8. Bb3
{[%clk 0:02:52.1]} 8... Re8 {[%clk 0:02:50.4]} 9. O-O {[%clk 0:02:51.3]} 9... d6
{[%clk 0:02:48.9]} 10. h3 {[%clk 0:02:49.8]} 10... Na5 {[%clk 0:02:49.2]} 11.
Re1 {[%clk 0:02:49.2]} 11... b6 {[%clk 0:02:48]} 12. Qd2 {[%clk 0:02:47.9]}
12... Bb7 {[%clk 0:02:42.4]} 13. f3 {[%clk 0:02:47.7]} 13... Rc8 {[%clk
0:02:39.4]} 14. Rad1 {[%clk 0:02:47.2]} 14... Nc4 {[%clk 0:02:35.2]} 15. Bxc4
{[%clk 0:02:47]} 15... Rxc4 {[%clk 0:02:36.1]} 16. Qd3 {[%clk 0:02:47.2]} 16...
Qc8 {[%clk 0:02:32]} 17. Qd2 {[%clk 0:02:40.4]} 17... a6 {[%clk 0:02:26.9]} 18.
Nb3 {[%clk 0:02:40.1]} 18... Nd7 {[%clk 0:02:20.9]} 19. Bd4 {[%clk 0:02:37.8]}
19... Nf6 {[%clk 0:02:10.7]} 20. Bxb6 {[%clk 0:02:30.7]} 20... Nh5 {[%clk
0:01:38]} 21. Bd4 {[%clk 0:02:22]} 21... e5 {[%clk 0:01:38.4]} 22. Be3 {[%clk
0:02:18.8]} 22... Nf4 {[%clk 0:01:33.3]} 23. Kh2 {[%clk 0:01:52.3]} 23... Qc7
{[%clk 0:01:17.6]} 24. Qxd6 {[%clk 0:01:48.4]} 24... Rxc3 {[%clk 0:01:13]} 25.
bxc3 {[%clk 0:01:47.9]} 25... Qxc3 {[%clk 0:01:13.9]} 26. Qb6 {[%clk 0:01:34.1]}
26... Qc8 {[%clk 0:00:54.2]} 27. Nc5 {[%clk 0:01:28.6]} 27... Ba8 {[%clk
0:00:53.6]} 28. Qxa6 {[%clk 0:01:24.5]} 28... Qc7 {[%clk 0:00:53.9]} 29. Qd6
{[%clk 0:01:22.7]} 29... Qa5 {[%clk 0:00:50.1]} 30. Qd7 {[%clk 0:01:16.9]} 30...
Rb8 {[%clk 0:00:38.5]} 31. Nb3 {[%clk 0:01:10.6]} 31... Qxa2 {[%clk 0:00:33.3]}
32. Qc7 {[%clk 0:01:10.1]} 32... Rf8 {[%clk 0:00:23.7]} 33. Rd8 {[%clk
0:01:09.1]} 33... Ne6 {[%clk 0:00:20.5]} 34. Rxf8+ {[%clk 0:01:08.6]} 34... Bxf8
{[%clk 0:00:21.4]} 35. Qc8 {[%clk 0:01:04.2]} 35... Kg7 {[%clk 0:00:15.9]} 36.
Nc5 {[%clk 0:00:55.4]} 36... Qxc2 {[%clk 0:00:13.6]} 37. Nxe6+ {[%clk
0:00:54.8]} 37... fxe6 {[%clk 0:00:14.2]} 38. Qxc2 {[%clk 0:00:54.4]} 1-0

[Event "Late-Titled-Tuesday-Blitz-February-27-2024"]
[Site "Chess.com"]
[Date "2024.02.27"]
[Round "11"]
[White "KorolDimitriy75"]
[Black "CURRUTACO59"]
[Result "1-0"]
[WhiteElo "2427"]
[BlackElo "2229"]
[TimeControl "180+1"]
[EndTime "16:05:13 PST"]
[Termination "KorolDimitriy75 won on time"]

1. d4 {[%clk 0:03:00.9]} 1... Nf6 {[%clk 0:02:56.6]} 2. c4 {[%clk 0:03:01]} 2...
e6 {[%clk 0:02:56.6]} 3. Nc3 {[%clk 0:03:01.6]} 3... Bb4 {[%clk 0:02:56.4]} 4.
Qc2 {[%clk 0:03:01.9]} 4... d6 {[%clk 0:02:55.6]} 5. e4 {[%clk 0:03:01.9]} 5...
Bxc3+ {[%clk 0:02:54.7]} 6. bxc3 {[%clk 0:03:01.7]} 6... e5 {[%clk 0:02:54.1]}
7. Bd3 {[%clk 0:02:56.1]} 7... c5 {[%clk 0:02:53.9]} 8. Ne2 {[%clk 0:02:54.2]}
8... Nc6 {[%clk 0:02:53.5]} 9. d5 {[%clk 0:02:53.2]} 9... Na5 {[%clk 0:02:51.8]}
10. O-O {[%clk 0:02:46]} 10... b6 {[%clk 0:02:42.5]} 11. f4 {[%clk 0:02:45.2]}
11... Nd7 {[%clk 0:02:19.2]} 12. Ng3 {[%clk 0:02:35.6]} 12... O-O {[%clk
0:02:06.4]} 13. Nf5 {[%clk 0:02:22.2]} 13... Qc7 {[%clk 0:01:39.4]} 14. Qf2
{[%clk 0:02:03.5]} 14... Ba6 {[%clk 0:01:35]} 15. Qg3 {[%clk 0:01:35.7]} 15...
g6 {[%clk 0:01:28]} 16. Nh6+ {[%clk 0:01:25.6]} 16... Kh8 {[%clk 0:01:25.1]} 17.
f5 {[%clk 0:01:19]} 17... Bxc4 {[%clk 0:01:00.5]} 18. Bxc4 {[%clk 0:01:07.2]}
18... Nxc4 {[%clk 0:00:59.6]} 19. Qh4 {[%clk 0:00:22.2]} 19... Qd8 {[%clk
0:00:02.9]} 20. f6 {[%clk 0:00:21.1]} 1-0

[Event "Late-Titled-Tuesday-Blitz-February-27-2024"]
[Site "Chess.com"]
[Date "2024.02.27"]
[Round "11"]
[White "rasmussvane"]
[Black "LiemLe"]
[Result "0-1"]
[WhiteElo "2935"]
[BlackElo "3060"]
[TimeControl "180+1"]
[EndTime "16:05:22 PST"]
[Termination "LiemLe won by resignation"]

1. Nf3 {[%clk 0:03:00.9]} 1... d5 {[%clk 0:02:59.9]} 2. g3 {[%clk 0:02:58.5]}
2... Nf6 {[%clk 0:03:00.3]} 3. Bg2 {[%clk 0:02:58.5]} 3... c6 {[%clk 0:02:59.3]}
4. O-O {[%clk 0:02:58.8]} 4... Bf5 {[%clk 0:02:59.9]} 5. c4 {[%clk 0:02:58.5]}
5... e6 {[%clk 0:02:58.9]} 6. Qb3 {[%clk 0:02:58.6]} 6... Qb6 {[%clk 0:02:54.5]}
7. d3 {[%clk 0:02:58.6]} 7... dxc4 {[%clk 0:02:47.5]} 8. Qxc4 {[%clk 0:02:55.1]}
8... Be7 {[%clk 0:02:45.7]} 9. Nc3 {[%clk 0:02:52.7]} 9... O-O {[%clk
0:02:45.2]} 10. Be3 {[%clk 0:02:51.3]} 10... Qa6 {[%clk 0:02:45.5]} 11. Qb3
{[%clk 0:02:32.4]} 11... Nbd7 {[%clk 0:02:37.8]} 12. a3 {[%clk 0:02:32.4]} 12...
Nd5 {[%clk 0:02:29.8]} 13. Bd2 {[%clk 0:02:27.5]} 13... Bg6 {[%clk 0:02:29.6]}
14. Rfc1 {[%clk 0:02:22.9]} 14... Rfd8 {[%clk 0:02:28.7]} 15. Qc2 {[%clk
0:02:21.4]} 15... Rac8 {[%clk 0:02:24.6]} 16. b4 {[%clk 0:01:55.2]} 16... c5
{[%clk 0:02:23.2]} 17. b5 {[%clk 0:01:53.4]} 17... Qd6 {[%clk 0:02:17.6]} 18.
Qb3 {[%clk 0:01:42]} 18... Bf6 {[%clk 0:02:08.8]} 19. Ne1 {[%clk 0:00:43.3]}
19... N7b6 {[%clk 0:01:45.4]} 20. Nxd5 {[%clk 0:00:39]} 20... exd5 {[%clk
0:01:46.3]} 21. Bc3 {[%clk 0:00:35.8]} 21... c4 {[%clk 0:01:44.4]} 22. dxc4
{[%clk 0:00:34.2]} 22... dxc4 {[%clk 0:01:44.4]} 23. Qb4 {[%clk 0:00:32.3]}
23... Bxc3 {[%clk 0:01:20.7]} 24. Rxc3 {[%clk 0:00:24.6]} 24... Qe5 {[%clk
0:01:11.9]} 25. Bf3 {[%clk 0:00:16.9]} 25... Be4 {[%clk 0:00:59.8]} 26. Bxe4
{[%clk 0:00:06.1]} 26... Qxe4 {[%clk 0:01:00.7]} 27. Qb2 {[%clk 0:00:06.3]}
27... Na4 {[%clk 0:00:59.9]} 28. Qc2 {[%clk 0:00:03.2]} 28... Nxc3 {[%clk
0:01:00.2]} 29. Qxc3 {[%clk 0:00:04.1]} 29... Qxe2 {[%clk 0:01:00.5]} 30. Kg2
{[%clk 0:00:02.7]} 30... Qd2 {[%clk 0:00:58.3]} 31. Qf3 {[%clk 0:00:02.4]} 31...
Qd5 {[%clk 0:00:57.8]} 32. Nc2 {[%clk 0:00:02.2]} 32... c3 {[%clk 0:00:57.4]}
33. Ne3 {[%clk 0:00:02.7]} 33... Qxb5 {[%clk 0:00:57.3]} 34. Rc1 {[%clk
0:00:02.8]} 34... Qc6 {[%clk 0:00:57.5]} 35. Rc2 {[%clk 0:00:02]} 35... Rd2
{[%clk 0:00:56.2]} 36. Rxd2 {[%clk 0:00:02]} 36... cxd2 {[%clk 0:00:55.6]} 37.
Nd5 {[%clk 0:00:02.9]} 37... d1=Q {[%clk 0:00:49]} 38. Qxd1 {[%clk 0:00:01.8]}
38... Rd8 {[%clk 0:00:48.7]} 39. Kh3 {[%clk 0:00:02.1]} 39... Qxd5 {[%clk
0:00:49]} 0-1

[Event "Late-Titled-Tuesday-Blitz-February-27-2024"]
[Site "Chess.com"]
[Date "2024.02.27"]
[Round "11"]
[White "elchacal664"]
[Black "Fjal"]
[Result "0-1"]
[WhiteElo "2407"]
[BlackElo "2317"]
[TimeControl "180+1"]
[EndTime "16:05:24 PST"]
[Termination "Fjal won on time"]

1. e4 {[%clk 0:02:50]} 1... d6 {[%clk 0:03:00.3]} 2. Nc3 {[%clk 0:02:48.3]} 2...
Nf6 {[%clk 0:03:00.9]} 3. Bc4 {[%clk 0:02:48.8]} 3... g6 {[%clk 0:03:00.9]} 4.
f4 {[%clk 0:02:49.2]} 4... Bg7 {[%clk 0:03:01.6]} 5. d3 {[%clk 0:02:49.5]} 5...
c6 {[%clk 0:03:01.2]} 6. Bb3 {[%clk 0:02:49.1]} 6... d5 {[%clk 0:03:01.5]} 7. e5
{[%clk 0:02:49]} 7... Nfd7 {[%clk 0:03:02]} 8. Nf3 {[%clk 0:02:39.9]} 8... Nc5
{[%clk 0:03:01.7]} 9. d4 {[%clk 0:02:36.6]} 9... Nxb3 {[%clk 0:02:59.4]} 10.
axb3 {[%clk 0:02:37.5]} 10... O-O {[%clk 0:02:59.9]} 11. Be3 {[%clk 0:02:28.5]}
11... Bg4 {[%clk 0:02:59.9]} 12. h3 {[%clk 0:02:27.6]} 12... Bxf3 {[%clk
0:02:59.7]} 13. Qxf3 {[%clk 0:02:28]} 13... f6 {[%clk 0:02:59.7]} 14. exf6
{[%clk 0:02:21]} 14... exf6 {[%clk 0:02:59.1]} 15. O-O {[%clk 0:02:20.1]} 15...
f5 {[%clk 0:02:48]} 16. Rae1 {[%clk 0:02:03.3]} 16... Qb6 {[%clk 0:02:47.1]} 17.
Na4 {[%clk 0:01:58.1]} 17... Qa5 {[%clk 0:02:45.7]} 18. Nc5 {[%clk 0:01:52.4]}
18... Re8 {[%clk 0:02:42.7]} 19. Nxb7 {[%clk 0:01:33.6]} 19... Qb4 {[%clk
0:02:42.1]} 20. Nc5 {[%clk 0:01:02.5]} 20... Bxd4 {[%clk 0:02:21.3]} 21. c3
{[%clk 0:00:28.1]} 21... Qxc5 {[%clk 0:01:56.4]} 22. Bxd4 {[%clk 0:00:27.1]}
22... Qf8 {[%clk 0:01:57]} 23. Rxe8 {[%clk 0:00:25.6]} 23... Qxe8 {[%clk
0:01:57.9]} 24. Qg3 {[%clk 0:00:25.4]} 24... Nd7 {[%clk 0:01:54.4]} 25. Re1
{[%clk 0:00:25]} 25... Qf7 {[%clk 0:01:55]} 26. Qg5 {[%clk 0:00:23.6]} 26... Re8
{[%clk 0:01:53.9]} 27. Rxe8+ {[%clk 0:00:21.9]} 27... Qxe8 {[%clk 0:01:54.8]}
28. Qh6 {[%clk 0:00:21]} 28... Qe7 {[%clk 0:01:46.3]} 29. h4 {[%clk 0:00:19.4]}
29... c5 {[%clk 0:01:46.8]} 30. Bf2 {[%clk 0:00:14.3]} 30... Nf6 {[%clk
0:01:47.5]} 31. Qg5 {[%clk 0:00:13.1]} 31... Kf7 {[%clk 0:01:46.1]} 32. h5
{[%clk 0:00:12.5]} 32... c4 {[%clk 0:01:43.9]} 33. bxc4 {[%clk 0:00:12.3]} 33...
dxc4 {[%clk 0:01:44.8]} 34. hxg6+ {[%clk 0:00:12.5]} 34... hxg6 {[%clk
0:01:45.2]} 35. Bd4 {[%clk 0:00:13]} 35... Qe1+ {[%clk 0:01:42.8]} 36. Kh2
{[%clk 0:00:13]} 36... Ng4+ {[%clk 0:01:43.5]} 37. Kh3 {[%clk 0:00:03.9]} 37...
Qh1+ {[%clk 0:01:43.8]} 38. Kg3 {[%clk 0:00:04.1]} 38... Qe1+ {[%clk 0:01:40.2]}
39. Kh3 {[%clk 0:00:03.8]} 39... Qe2 {[%clk 0:01:09]} 40. Qh4 {[%clk 0:00:02.3]}
40... Qd3+ {[%clk 0:01:08.3]} 41. Qg3 {[%clk 0:00:02]} 41... a6 {[%clk
0:01:04.7]} 42. Qxd3 {[%clk 0:00:01.1]} 42... cxd3 {[%clk 0:01:05.6]} 0-1

[Event "Late-Titled-Tuesday-Blitz-February-27-2024"]
[Site "Chess.com"]
[Date "2024.02.27"]
[Round "11"]
[White "Alphafischer2019"]
[Black "stollenmonster"]
[Result "1-0"]
[WhiteElo "2719"]
[BlackElo "2844"]
[TimeControl "180+1"]
[EndTime "16:05:25 PST"]
[Termination "Alphafischer2019 won on time"]

1. Nf3 {[%clk 0:02:59.3]} 1... Nf6 {[%clk 0:03:00.5]} 2. g3 {[%clk 0:02:59.8]}
2... e6 {[%clk 0:03:00.7]} 3. Bg2 {[%clk 0:03:00.2]} 3... d5 {[%clk 0:03:01.6]}
4. O-O {[%clk 0:03:00.7]} 4... Be7 {[%clk 0:03:02.5]} 5. d3 {[%clk 0:02:59.4]}
5... O-O {[%clk 0:03:02.7]} 6. Nbd2 {[%clk 0:03:00.1]} 6... d4 {[%clk
0:03:03.3]} 7. e4 {[%clk 0:03:00.8]} 7... dxe3 {[%clk 0:03:04.2]} 8. fxe3 {[%clk
0:03:00.4]} 8... c5 {[%clk 0:03:04.9]} 9. Nc4 {[%clk 0:02:57.9]} 9... Nc6 {[%clk
0:03:05.1]} 10. e4 {[%clk 0:02:58.5]} 10... e5 {[%clk 0:02:59.1]} 11. Nh4 {[%clk
0:02:33.7]} 11... Ng4 {[%clk 0:02:46.3]} 12. Nf3 {[%clk 0:02:19.7]} 12... Nf6
{[%clk 0:02:43.2]} 13. Nh4 {[%clk 0:02:17.7]} 13... Ng4 {[%clk 0:02:31.2]} 14.
Nf3 {[%clk 0:02:17.9]} 14... f5 {[%clk 0:02:26.5]} 15. h3 {[%clk 0:02:06.7]}
15... Nf6 {[%clk 0:02:26.3]} 16. exf5 {[%clk 0:02:02]} 16... Bxf5 {[%clk
0:02:26.9]} 17. Nh4 {[%clk 0:02:02.5]} 17... Be6 {[%clk 0:02:23]} 18. Kh2 {[%clk
0:01:58.7]} 18... Qd7 {[%clk 0:02:20.5]} 19. Be3 {[%clk 0:01:47.4]} 19... e4
{[%clk 0:01:57]} 20. b3 {[%clk 0:01:29.8]} 20... exd3 {[%clk 0:01:43.7]} 21.
Qxd3 {[%clk 0:01:24]} 21... Qxd3 {[%clk 0:01:42.9]} 22. cxd3 {[%clk 0:01:24.9]}
22... Nd5 {[%clk 0:01:43.2]} 23. Bg1 {[%clk 0:01:21.3]} 23... Nd4 {[%clk
0:00:30.1]} 24. Bxd4 {[%clk 0:00:58]} 24... cxd4 {[%clk 0:00:31]} 25. Rfe1
{[%clk 0:00:54.9]} 25... Ne3 {[%clk 0:00:17.1]} 26. Nxe3 {[%clk 0:00:53.6]}
26... dxe3 {[%clk 0:00:18]} 27. Rxe3 {[%clk 0:00:54]} 27... Bf6 {[%clk
0:00:18.5]} 28. Rf1 {[%clk 0:00:46.9]} 28... Bf7 {[%clk 0:00:14.4]} 29. Nf5
{[%clk 0:00:47]} 29... Rac8 {[%clk 0:00:11.9]} 30. Ne7+ {[%clk 0:00:46]} 30...
Bxe7 {[%clk 0:00:11.6]} 31. Rxe7 {[%clk 0:00:46.7]} 31... Rc2 {[%clk 0:00:12.3]}
32. Kg1 {[%clk 0:00:44.9]} 32... b6 {[%clk 0:00:01.7]} 33. Rxa7 {[%clk
0:00:40.7]} 1-0